[Event "FRA-chT Top 12"]
[Site "Drancy"]
[Date "2016.05.28"]
[Round "1.1"]
[White "Maze, Sebastien"]
[Black "Pelletier, Yannick"]
[Result "1-0"]
[ECO "A07"]
[WhiteElo "2614"]
[BlackElo "2558"]
[Annotator "RR"]
[PlyCount "147"]
[EventDate "2016.05.28"]
[EventType "team-tourn"]
[EventRounds "11"]
[EventCountry "FRA"]
[SourceTitle "CBM 172 Extra"]
[Source "ChessBase"]
[SourceDate "2016.06.21"]
[SourceVersion "1"]
[SourceVersionDate "2016.06.21"]
[SourceQuality "1"]
[WhiteTeam "Bois Colombes"]
[BlackTeam "Bischwiller"]
[WhiteTeamCountry "FRA"]
[BlackTeamCountry "FRA"]
[TimeControl "40/5400+30:1800+30"]

1. Nf3 {[%emt 0:00:00][%mdl 512] La partie a obtenu le prix carrefour de la première ronde} Nf6 {[%emt 0:00:00]} 2. g3 {[%emt 0:00:00]} d5 {[%emt 0:00:28]} 3. Bg2 {[%emt 0:00:00]} c6 {[%emt 0:00:19]} 4. O-O {[%emt 0:00:00]} Bg4 {[%emt 0:00:37]} 5. d3 {[%emt 0:00:01]} Nbd7 {[%emt 0:00:05]} 6. h3 {[%emt 0:00:06]} Bh5 {[%emt 0:00:47]} 7. Qe1 {[%emt 0:00:07]} e5 {[%emt 0:02:03]} 8. e4 {[%emt 0:00:42]} dxe4 {[%emt 0:00:29]} 9. dxe4 {[%emt 0:00:04]} Be7 {[%emt 0:02:58]} 10. Nbd2 {[%emt 0:00:42]} O-O {[%emt 0:00:57]} 11. Nc4 {[%emt 0:01:13]} Qc7 {[%emt 0:01:06]} 12. Nh4 {[%emt 0:00:14]} Rfe8 {[%emt 0:04:46]} 13. a4 {[%emt 0:01:33]} Bf8 {[%emt 0:03:58]} (13... Nc5 14. Nf5 Bf8 15. f4 Nfd7 16. g4 Bg6 17. Nxg7 Bxg7 18. f5 Ne6 19. Be3 Nf4 20. Qf2 b5 21. Nd2 a6 22. Rad1 Rad8 23. axb5 axb5 24. Nf3 c5 25. fxg6 hxg6 26. Kh1 c4 27. Nxe5 Bxe5 28. Bxf4 Bxf4 29. Qxf4 Ne5 30. Rd5 b4 31. Rfd1 Ra8 32. Qf6 b3 33. cxb3 cxb3 34. Bf1 Qc2 35. R1d2 Qxe4+ 36. Bg2 Qe1+ 37. Kh2 Rac8 38. R5d4 Rc2 39. Qf4 Rec8 40. Be4 Rxd2+ 41. Rxd2 Rc4 42. Rd8+ Kh7 43. Qf6 {Fressinet,L (2700)-Movsesian,S (2653) Huaian 2016 ½-½}) ({RR} 13... a5 14. Bd2 b6 15. Kh1 Nc5 16. g4 Nfd7 17. f4 b5 18. axb5 cxb5 19. Ne3 Qd8 20. Nhf5 exf4 21. Nd5 Bg6 22. Bxa5 Rxa5 23. Ndxe7+ Rxe7 24. Qxa5 Re8 25. Qxd8 Rxd8 26. Rad1 f6 27. Rxf4 Rb8 28. Rf2 {Giri,A (2798)-Motylev,A (2649) Baku 2015 1-0 (34)}) ({RR} 13... Nc5 14. Nf5 Bf8 15. b4 Ne6 16. Bb2 Nd7 17. f4 exf4 18. gxf4 Bg6 19. Qg3 f6 20. Rad1 Bxb4 21. Ncd6 Bxd6 22. Nxd6 Qb6+ 23. Kh1 Qxb2 24. f5 Qe5 25. Qh4 Re7 26. fxg6 hxg6 27. Nxb7 Ndc5 28. Nd6 {Le,Q (2739)-Piesik,P (2421) chess.com INT 2024 0-1 (40)}) 14. Bg5 {[%emt 0:10:31]} ({RR} 14. Bd2 Nc5 15. Ba5 b6 16. Bc3 Nfd7 17. f4 f6 18. fxe5 fxe5 19. Ne3 Ne6 20. Nef5 Rad8 21. Kh1 Nf6 22. Nh6+ gxh6 23. Rxf6 Nd4 24. Rf2 Bg6 25. Qe3 Qg7 26. Raf1 Be7 27. Nxg6 Qxg6 28. Be1 Rf8 {Nakamura,H (2793)-Pelletier,Y (2541) Zuerich 2017 1-0 (48)}) 14... h6 {[%emt 0:09:28]} 15. Bd2 {[%emt 0:02:28]} Nc5 {[%emt 0:20:31]} 16. b4 $146 {[%emt 0:13:46]} (16. b3 {½-½ Haub,T (2450)-Jackelen,T (2435) BL2-West 0809 2008 (7.5)}) ({RR} 16. b3) 16... Ne6 {[%emt 0:05:20][%cal Ge6d4]} 17. c3 {[%emt 0:00:11]} Rad8 {[%emt 0:02:02]} 18. a5 {[%emt 0:23:25] Les Blancs ont un petit avantage d'espace mais la position Noire est solide} (18. Nf5) 18... b5 $6 {[%emt 0:10:38] Créant des faiblesses à l'aile-dame} 19. axb6 $1 {[%emt 0:00:35]} (19. Ne3 $143 {[%cal Ge3f5]}) 19... axb6 {[%emt 0:00:09]} 20. Be3 $1 {[%emt 0:02:58]} c5 {[%emt 0:00:10]} 21. b5 $1 $14 {[%emt 0:04:53][%csl Rb6,Gc4,Gc6]} Nd4 $1 {[%emt 0:03:22] La pointe} 22. g4 {[%emt 0:00:30]} (22. cxd4 cxd4 {[%csl Rc4,Re3][%cal Gc7c4]}) 22... Nc2 {[%emt 0:05:10]} 23. Qe2 {[%emt 0:00:16]} Nxa1 {[%emt 0:00:09]} 24. Rxa1 {[%emt 0:00:03]} Bg6 {[%emt 0:00:23]} 25. Nxg6 {[%emt 0:02:23]} (25. Nf5 $5) 25... fxg6 {[%emt 0:00:03]} 26. Ra6 $16 {[%emt 0:00:12][%csl Rb6]} Rb8 {[%emt 0:04:20]} 27. Qa2 {[%emt 0:06:21]} Kh7 {[%emt 0:00:04]} 28. f3 {[%emt 0:01:06]} Rb7 {[%emt 0:05:53]} 29. Bf1 $1 {[%emt 0:01:03][%cal Ge3f2,Gc4e3,Gf1c4,Ge3d5] Activant la seule pièce Blanche qui restait hors-jeu} Nd7 {[%emt 0:00:23]} 30. Bf2 {[%emt 0:00:44]} Be7 {[%emt 0:01:10]} 31. Ne3 {[%emt 0:00:36]} Bg5 {[%emt 0:00:52]} 32. Nd5 {[%emt 0:00:55]} (32. Bc4 Bxe3 33. Bxe3 {[%cal Gc4d5]} g5 {[%cal Gd7f8,Gf8g6,Gg6f4]}) 32... Qd6 {[%emt 0:01:03]} 33. Bc4 {[%emt 0:03:38]} Rf8 {[%emt 0:01:07]} 34. Kg2 {[%emt 0:00:23]} Nb8 {[%emt 0:01:14]} 35. Ra3 {[%emt 0:05:05]} Rbf7 {[%emt 0:03:49]} 36. Be2 {[%emt 0:00:05]} Nd7 {[%emt 0:00:45]} 37. Ra7 {[%emt 0:04:45]} Bd8 {[%emt 0:01:23]} 38. Ne3 {[%emt 0:05:58]} Bg5 {[%emt 0:03:45]} 39. Nd5 {[%emt 0:00:47] Une répétition de coups pour passer le contrôle de temps} Bd8 {[%emt 0:00:08]} 40. Bg3 {[%emt 0:03:59]} Qe6 {[%emt 0:04:58]} 41. Ne3 $1 {[%emt 0:31:30][%csl Rf7,Rf8] Après une longue réflexion, les Blancs choisissent d'échanger les  malgré la qualite de moins car les  Noires sont assez mal placées} Qxa2 {[%emt 0:10:45]} 42. Rxa2 {[%emt 0:00:00]} Bg5 {[%emt 0:00:03]} 43. Nd5 {[%emt 0:00:00]} Bf4 {[%emt 0:02:56]} 44. Bh4 {[%emt 0:00:00]} g5 {[%emt 0:02:01]} 45. Bf2 {[%emt 0:00:00]} Bc1 {[%emt 0:02:33]} 46. Be1 {[%emt 0:00:00]} Rd8 {[%emt 0:06:37]} 47. Ra7 {[%emt 0:00:00]} Rf6 $5 {[%emt 0:00:12]} (47... Rff8 $13) 48. Nxf6+ {[%emt 0:00:00]} Nxf6 {[%emt 0:00:02]} 49. Rb7 {[%emt 0:00:00]} Bd2 {[%emt 0:03:58]} 50. Kf1 {[%emt 0:00:00] Le coup naturel joué à tempo mais les Noirs ont une forte réponse} Nxe4 $1 {[%emt 0:00:41][%csl Re1][%cal Gd8f8]} 51. fxe4 {[%emt 0:00:00]} Rf8+ {[%emt 0:00:06]} 52. Bf2 {[%emt 0:00:00]} Be3 {[%emt 0:00:21]} 53. Rxb6 {[%emt 0:00:00]} Bxf2 {[%emt 0:04:28]} 54. Bc4 {[%emt 0:00:17]} Bd4+ {[%emt 0:00:19]} 55. Ke2 {[%emt 0:00:04]} Bxc3 {[%emt 0:00:24]} 56. Be6 $1 {[%emt 0:00:39][%cal Ge6f5]} c4 {[%emt 0:02:07]} 57. Bf5+ {[%emt 0:07:18]} Kg8 {[%emt 0:00:02]} 58. Rc6 {[%emt 0:00:15]} Bd4 {[%emt 0:00:17]} 59. Be6+ {[%emt 0:01:55]} Kh7 {[%emt 0:00:46]} 60. Bxc4 {[%emt 0:00:07][%csl Gb5] Les Blancs ont gagné un  passé très fort mais il y a toujours le risque d'écahnger les  pour transposer en finale de  de couleurs opposées} Rf2+ {[%emt 0:00:23]} 61. Kd3 {[%emt 0:00:04]} Rh2 {[%emt 0:03:44]} (61... Rf1 62. Be6 Rb1 63. Kc4 Rc1+ {La  a une meilleure distance de sécurité alors que le "h3" ne vaut pas grand-chose} 64. Kb4 Rb1+ 65. Bb3 $1 $18) 62. Bf7 $1 {[%emt 0:01:31][%cal Gf7g6,Gc6c8] Menace mat en 2!} Rxh3+ {[%emt 0:00:03] Regagne le  mais après c4, la h3 est mal placée pour contrôler la poussée du "b"} 63. Kc4 {[%emt 0:00:02]} g6 $8 {[%emt 0:00:36]} 64. Bxg6+ {[%emt 0:00:49]} Kg7 {[%emt 0:00:02]} 65. Bf5 {[%emt 0:00:51]} h5 $6 {[%emt 0:01:27] l'échange risque de mettre la  hors-jeu} 66. gxh5 {[%emt 0:01:50]} Rxh5 {[%emt 0:00:02][%csl Rh5]} 67. b6 {[%emt 0:00:19]} Rh1 {[%emt 0:00:40]} 68. b7 {[%emt 0:00:36]} Rb1 {[%emt 0:00:16]} 69. Rc7+ {[%emt 0:00:06]} Kf6 {[%emt 0:00:05]} 70. Kd5 $18 {[%emt 0:00:26]} Rb4 {[%emt 0:01:34]} 71. Kc6 {[%emt 0:00:45]} Rb6+ {[%emt 0:00:30]} 72. Kd7 {[%emt 0:00:06]} Rb4 {[%emt 0:00:11]} 73. Rc6+ {[%emt 0:02:00]} Kf7 {[%emt 0:00:48]} 74. Be6+ {[%emt 0:00:51]} 1-0

[Event "FRA-chT Top 12"]
[Site "Brest"]
[Date "2018.06.03"]
[Round "9"]
[White "Duda, Jan Krzysztof"]
[Black "Kuzubov, Yuriy"]
[Result "1-0"]
[ECO "A09"]
[WhiteElo "2724"]
[BlackElo "2663"]
[Annotator "ChessBase II"]
[PlyCount "95"]
[EventDate "2018.05.26"]
[EventType "team-tourn"]
[EventRounds "11"]
[EventCountry "FRA"]
[SourceTitle "EXT 2019"]
[Source "ChessBase"]
[SourceDate "2018.10.10"]
[SourceVersion "1"]
[SourceVersionDate "2018.10.10"]
[SourceQuality "1"]
[WhiteTeam "Bois Colombes"]
[BlackTeam "Grasse Echecs"]
[WhiteTeamCountry "FRA"]
[BlackTeamCountry "FRA"]
[TimeControl "40/5400+30:1800+30"]

1. Nf3 {[%emt 0:00:00]} d5 {[%emt 0:00:48]} 2. c4 {[%emt 0:00:00]} d4 {[%emt 0:01:45]} 3. b4 {[%emt 0:00:00]} g6 {[%emt 0:00:17]} 4. g3 {[%emt 0:00:07]} Bg7 {[%emt 0:00:45]} 5. d3 {[%emt 0:00:07]} e5 {[%emt 0:03:02]} 6. Bg2 {[%emt 0:00:05]} Ne7 {[%emt 0:00:05]} 7. O-O {[%emt 0:00:06]} O-O {[%emt 0:00:05]} 8. a4 {[%emt 0:00:05]} a5 {[%emt 0:04:47]} 9. b5 {[%emt 0:00:21]} c5 {[%emt 0:00:15]} 10. Ra2 {[%emt 0:00:14]} ({RR} 10. Nbd2 Ra7 11. Ra3 b6 12. e3 h6 13. exd4 exd4 14. Re1 Nf5 15. Ra2 Nd6 16. Ne4 Nxe4 17. Rxe4 Bf5 18. Re1 Re8 19. Rxe8+ Qxe8 20. Re2 Re7 21. Rxe7 Qxe7 22. Nh4 Bc8 23. Bf4 Nd7 24. Bc7 Be5 {Fressinet,L (2717)-Le,Q (2712) Dubai 2014 ½-½ (43)}) ({RR} 10. bxc6 Nexc6 11. Ba3 Re8 12. Nbd2 Nd7 13. Ne4 Nf6 14. Nd6 Re6 15. Nxc8 Rxc8 16. Bh3 Re8 17. Bxc8 Qxc8 18. Rb1 Qh3 19. Rxb7 Ng4 20. Qb3 e4 21. dxe4 Nce5 22. Rd1 d3 23. Rxd3 Nxf3+ {0-1 (23) Mekhitarian,K (2564)-Platzgummer,F (2291) chess.com INT 2025}) 10... Nf5 {[%emt 0:29:42]} (10... h6 11. e3 Be6 12. exd4 cxd4 13. Re2 Nd7 14. Ba3 Re8 15. Rfe1 g5 16. Nbd2 Ng6 17. Ne4 Bf8 18. Bxf8 Rxf8 19. Qc1 Bf5 20. Nfd2 Bg4 21. Nd6 Qc7 22. Qa3 Bxe2 23. Rxe2 Qc5 24. Qxc5 Nxc5 25. Nxb7 Nxd3 26. Nb3 f5 27. Bd5+ Kh8 28. N7xa5 Nc1 29. Nxc1 Rxa5 30. Ra2 Ne7 31. Nb3 Ra7 32. Bg2 Rb8 33. a5 d3 34. g4 Nc8 35. gxf5 Nd6 36. Bd5 Nxb5 37. cxb5 Rxb5 38. Bc4 Rb4 39. Nd2 e4 40. a6 {Maghsoodloo,P (2584)-Wen,Y (2617) Bandar e Anzali 2017 ½-½}) 11. e3 {[%emt 0:00:33]} dxe3 {[%emt 0:01:52]} 12. fxe3 {[%emt 0:00:05]} Be6 $146 {[%emt 0:00:52]} ({RR} 12... Ra7 13. Nc3 b6 14. e4 Nd4 15. Nd5 Bg4 16. Qe1 Nb3 17. Be3 f6 18. Raf2 Raf7 19. h3 Be6 20. Qd1 Nd4 21. Nxd4 cxd4 22. Bc1 Nd7 23. Ba3 Re8 24. Qd2 Bf8 25. Bc1 Bd6 26. g4 Ref8 27. Qd1 {Colas,J (2285)-Henriquez Villagra,C (2518) Montevideo 2018 1-0 (42)}) ({RR} 12... Nd7 13. Nc3 Nb6 14. Raf2 h5 15. Kh1 Be6 16. e4 Nd4 17. Nxd4 Qxd4 18. Nd5 Bxd5 19. exd5 f5 20. Bb2 Qg4 21. Bf3 Qg5 22. d6 Rad8 23. Ba3 Qe3 24. Bxb7 e4 25. Re2 Qxd3 26. Bxc5 Nxc4 27. Qxd3 {Nesterov,A (2562)-Khubukshanov,E (2388) Moscow RUS 2023 1-0 (37)}) 13. Nc3 {[%emt 0:02:09]} Nd6 $146 {[%emt 0:10:02]} (13... h6 14. Re2 Nd7 15. Nd2 Ra7 16. Nb3 b6 17. Nd5 Kh7 18. Ref2 f6 19. Qe2 Nb8 20. Bb2 Rd7 21. Nc1 Rdf7 22. Na2 Nd6 23. Nac3 Nd7 24. e4 Re8 25. Ne3 Nf8 26. Kh1 Bc8 27. Ncd5 h5 28. Bc3 Kg8 29. Qd1 Nh7 30. Qd2 Bh6 31. Qe2 Ref8 32. h4 Ne8 33. Kh2 Ng7 34. Bb2 Qd6 35. Nd1 Ne6 36. Bh3 Bb7 37. N1e3 Kg7 38. Bc3 Kg8 39. Qe1 Nd4 40. Bd2 Bg7 41. Bc3 Re8 42. Ra2 Rff8 43. Raf2 {Brzezinski,A (2165)-Todorovic,G (2476) Skopje 2014 ½-½ (96)}) 14. e4 {[%emt 0:07:35]} h6 {[%emt 0:04:05]} 15. Be3 {[%emt 0:22:53]} Nd7 {[%emt 0:00:08]} 16. Qd2 {[%emt 0:00:32]} Kh7 {[%emt 0:00:41]} 17. Nh4 {[%emt 0:00:06]} Qc8 {[%emt 0:19:05]} 18. Qc1 {[%emt 0:09:14]} Nf6 {[%emt 0:10:25]} 19. b6 $1 $14 {[%emt 0:12:47][%csl Rb7,Gc7]} Ng4 {[%emt 0:02:22]} 20. Bd2 {[%emt 0:00:15]} f5 {[%emt 0:00:40]} 21. exf5 {[%emt 0:08:12]} gxf5 {[%emt 0:01:02]} (21... Nxf5 {[%cal Gf5d4]} 22. Nxf5 Bxf5 (22... gxf5) 23. Ne4 Qd7 $132 {[%csl Rd3]}) 22. Nd5 {[%emt 0:02:30]} e4 {[%emt 0:07:19]} 23. Bf4 {[%emt 0:01:51]} Ne5 {[%emt 0:00:58]} 24. dxe4 {[%emt 0:00:56]} Nxe4 {[%emt 0:00:38]} 25. Bxe4 {[%emt 0:14:29]} fxe4 {[%emt 0:00:04]} 26. Qe1 {[%emt 0:00:57]} Nf3+ {[%emt 0:01:08]} 27. Nxf3 {[%emt 0:00:06]} exf3 {[%emt 0:00:35]} 28. Qe4+ {[%emt 0:05:06]} Bf5 {[%emt 0:00:04]} 29. Qxf3 {[%emt 0:00:05]} Bd4+ {[%emt 0:00:35]} 30. Be3 {[%emt 0:01:47]} Bd3 {[%emt 0:00:30]} 31. Qxf8 {[%emt 0:00:41]} Qxf8 {[%emt 0:00:09]} 32. Rxf8 {[%emt 0:00:04]} Rxf8 {[%emt 0:00:07]} 33. Bxd4 {[%emt 0:01:12]} Bxc4 {[%emt 0:00:55]} 34. Rc2 {[%emt 0:01:06]} Bxd5 {[%emt 0:00:22]} 35. Rxc5 {[%emt 0:00:07]} Be6 {[%emt 0:01:13]} 36. Be5 {[%emt 0:02:18]} Rf5 {[%emt 0:00:31]} 37. Rxa5 {[%emt 0:04:02]} Bd7 {[%emt 0:00:25]} 38. Rc5 {[%emt 0:02:36]} Bxa4 {[%emt 0:00:13]} 39. Rc7+ {[%emt 0:00:04]} Kg8 {[%emt 0:00:07]} 40. Bf4 {[%emt 0:01:16]} Rf7 {[%emt 0:30:33]} 41. Bxh6 {[%emt 0:32:26]} Bc6 {[%emt 0:00:00]} 42. Bf4 {[%emt 0:00:00]} Rd7 {[%emt 0:00:00]} 43. Kf2 {[%emt 0:00:00]} Kf7 {[%emt 0:00:00]} 44. Ke3 {[%emt 0:00:00]} Ke6 {[%emt 0:00:00]} 45. h4 Re7 {[%emt 0:00:00]} 46. h5 {[%emt 0:00:00]} Kf7+ {[%emt 0:00:00]} 47. Be5 {[%emt 0:00:00]} Rxc7 {[%emt 0:03:17]} 48. bxc7 {[%emt 0:00:00]} 1-0

[Event "FRA-chT Top 12"]
[Site "Brest"]
[Date "2019.05.22"]
[Round "5.1"]
[White "Amin, Bassem"]
[Black "Nihal, Sarin"]
[Result "1-0"]
[ECO "A05"]
[WhiteElo "2704"]
[BlackElo "2598"]
[Annotator "ChessBase II"]
[PlyCount "59"]
[EventDate "2019.05.18"]
[EventType "team-tourn"]
[EventRounds "11"]
[EventCountry "FRA"]
[SourceTitle "CBM 190 Extra"]
[Source "ChessBase"]
[SourceDate "2019.07.15"]
[SourceVersion "1"]
[SourceVersionDate "2019.07.15"]
[SourceQuality "1"]
[WhiteTeam "Clichy 92"]
[BlackTeam "Mulhouse"]
[WhiteTeamCountry "FRA"]
[BlackTeamCountry "FRA"]
[TimeControl "40/5400+30:1800+30"]

1. Nf3 {[%emt 0:01:09]} Nf6 {[%emt 0:00:46]} 2. g3 {[%emt 0:00:08] L'égyptien est un bon spécialiste de l'attaque indienne} b5 $5 {[%emt 0:00:09][%csl Gc4] Une ligne secondaire qui donne des bons résultats pour les Noirs} (2... d5 3. Bg2 Bg4 {La grande ligne}) 3. Bg2 {[%emt 0:00:59]} Bb7 {[%emt 0:00:15]} 4. O-O {[%emt 0:00:17]} e6 {[%emt 0:01:12]} 5. d3 {[%emt 0:00:21]} c5 {[%emt 0:00:51]} 6. e4 {[%emt 0:01:49] La partie a transposé d'une Réti vers une française fermée et les Noirs espèrent gagner un tempo en jouant b5 au lieu de b6} d6 {[%emt 0:00:18]} 7. a4 {[%emt 0:01:00]} b4 {[%emt 0:00:44]} 8. a5 {[%emt 0:04:07]} (8. Nbd2 Nc6 9. Nc4 Qc7 10. Re1 Be7 11. a5 Rd8 12. a6 Ba8 13. Bf4 O-O 14. e5 dxe5 15. Nfxe5 Qc8 16. Nxc6 Bxc6 17. Bxc6 Qxc6 18. b3 Nd7 19. Qe2 Bf6 20. Ra5 Bc3 21. Qe4 Qd5 22. Bd2 Bxd2 23. Qxd5 exd5 24. Nxd2 Rfe8 25. Rxe8+ Rxe8 26. d4 Re2 27. dxc5 Rxd2 28. c6 Nb6 29. Rc5 Kf8 30. Kf1 Ke7 31. Ke1 Rd4 32. c7 Nc8 33. f3 g5 34. Ke2 Kd6 35. Ra5 g4 36. Ke3 Rd1 37. fxg4 Kc6 {Naiditsch,A (2705)-Fedorchuk,S (2648) Riadh 2017 0-1}) 8... Be7 {[%emt 0:23:02]} 9. Nbd2 {[%emt 0:07:44]} O-O {[%emt 0:08:34]} 10. Nc4 {[%emt 0:01:32]} ({RR} 10. Re1 Nbd7 11. Nc4 a6 12. c3 d5 13. exd5 Nxd5 14. Bd2 Qc7 15. Rc1 bxc3 16. bxc3 Rad8 17. h4 h6 18. Rb1 Ba8 19. Nh2 N7f6 20. Qe2 Rfe8 21. Nf3 Nd7 22. d4 Bf8 23. Nfe5 cxd4 24. cxd4 Nxe5 {Hillarp Persson,T (2457)-Pichot,A (2628) Budapest HUN 2024 0-1 (43)}) 10... Nbd7 {[%emt 0:09:23]} 11. Bf4 $146 {[%emt 0:12:06]} (11. Re1 Rc8 12. Bg5 h6 13. Bxf6 Nxf6 14. e5 Bxf3 15. Qxf3 dxe5 16. Rxe5 Nd5 17. Rae1 Bf6 18. R5e4 Ne7 {½-½ (18) Ubilava,E (2525)-Sion Castro,M (2375) Elgoibar 1995}) 11... d5 $146 {[%emt 0:10:03]} ({RR} 11... e5 12. Bg5 h6 13. Bxf6 Nxf6 14. Nh4 Bc8 15. Ne3 h5 16. Nhf5 g6 17. Nxe7+ Qxe7 18. f4 Kg7 19. Qd2 Be6 20. f5 Bd7 21. Rf2 Bc6 22. Raf1 Qc7 23. Nd5 Bxd5 24. exd5 Qxa5 25. Qg5 Qd8 26. Bh3 {Praggnanandhaa,R (2608)-Donchenko,A (2668) Chess.com INT 2020 1-0 (39)}) ({RR} 11... e5 12. Bg5 h6 13. Bxf6 Nxf6 14. Nh4 Bc8 15. Ne3 h5 16. Nhf5 g6 17. Nxe7+ Qxe7 18. f4 Kg7 19. Qd2 Be6 20. f5 Bd7 21. Rf2 Bc6 22. Raf1 Qc7 23. Nd5 Bxd5 24. exd5 Qxa5 25. Qg5 Qd8 26. Bh3 {Praggnanandhaa,R (2608)-Donchenko,A (2668) Chess.com INT 2020 1-0 (39)}) 12. a6 $1 {[%emt 0:04:26][%csl Ra7]} Bc6 {[%emt 0:00:27]} 13. Na5 {[%emt 0:00:47]} Bb5 {[%emt 0:08:11]} 14. e5 {[%emt 0:01:19]} (14. Nb7 Qb6) 14... Ne8 {[%emt 0:02:11]} 15. c4 {[%emt 0:01:03]} bxc3 {[%emt 0:00:09]} 16. bxc3 {[%emt 0:00:09]} Rc8 {[%emt 0:08:21]} (16... Bxa6 $2 17. Nc6) 17. c4 {[%emt 0:13:50]} Bxa6 {[%emt 0:00:54]} 18. cxd5 {[%emt 0:01:08]} exd5 {[%emt 0:00:05]} 19. Bh3 $44 {[%emt 0:00:34]} (19. Nb3 Qb6 $13) 19... Nb6 {[%emt 0:12:04]} 20. Bxc8 {[%emt 0:02:15]} Qxc8 {[%emt 0:03:43]} 21. Nc6 {[%emt 0:00:13]} Qxc6 {[%emt 0:00:05]} 22. Rxa6 {[%emt 0:00:07]} Nc7 {[%emt 0:01:20]} 23. Rxa7 $16 {[%emt 0:00:16][%csl Ga7]} Re8 {[%emt 0:00:01]} 24. Qb3 {[%emt 0:08:06]} Nc8 {[%emt 0:01:38]} 25. Ra5 {[%emt 0:14:16]} d4 {[%emt 0:02:24]} 26. e6 {[%emt 0:03:28]} (26. Nd2 $5 {[%cal Gd2c4]}) 26... Qxe6 {[%emt 0:02:51]} 27. Qb7 {[%emt 0:01:16]} Nd5 {[%emt 0:00:27]} 28. Re1 {[%emt 0:00:53]} Qb6 {[%emt 0:00:33]} 29. Qxb6 {[%emt 0:00:54]} Ncxb6 {[%emt 0:00:11]} 30. Bd6 {[%emt 0:01:45][%csl Re8]} 1-0